bitfinex-derivatives/quotes_BTCF0:USTF0_20260207
["timestamp","ask_amount","ask_price","bid_price","bid_amount"]
[1770481019406,0.57171879,69727.0,69671.0,0.071828]
[1770481019628,0.57171879,69727.0,69661.0,0.11137892]
[1770481019805,0.57171879,69727.0,69672.0,0.071827]
[1770481020009,0.57171879,69727.0,69662.0,0.11137892]
[1770481020320,0.57191879,69736.0,69667.0,0.071832]
[1770481020503,0.57171879,69730.0,69659.0,0.11195421]
[1770481020703,0.0002,69736.0,69650.0,0.11195421]
[1770481020704,0.57171879,69718.0,69650.0,0.11195421]
[1770481020903,0.57171879,69695.0,69636.0,0.11195421]
[1770481021121,0.57171879,69690.0,69631.0,0.071869]
[1770481021309,0.57171879,69690.0,69630.0,0.11195421]
[1770481021310,0.64350279,69715.0,69648.0,0.071852]
[1770481021607,0.57171879,69715.0,69654.0,0.071845]
[1770481021807,0.57171879,69715.0,69651.0,0.11195421]
[1770481022022,0.0002,69731.0,69630.0,0.18382421]
[1770481022023,0.57171879,69693.0,69630.0,0.18382421]
[1770481022206,0.071797,69702.0,69627.0,0.64940193]
[1770481022404,0.57171879,69706.0,69648.0,0.071852]
[1770481022600,0.57171879,69706.0,69649.0,0.21576993]
[1770481022812,0.57171879,69706.0,69632.0,0.27879172]
[1770481022813,0.57171879,69683.0,69627.0,0.16793598]
[1770481023007,0.57171879,69683.0,69624.0,0.071877]
[1770481023205,0.57171879,69675.0,69617.0,0.16793598]
[1770481023401,0.57171879,69675.0,69624.0,0.38370725]
[1770481023605,0.57171879,69654.0,69603.0,0.16793598]
[1770481023806,0.57171879,69645.0,69598.0,0.16793598]
[1770481024012,0.57171879,69642.0,69587.0,0.16793598]
[1770481024209,0.57171879,69642.0,69611.0,0.0002]
[1770481024409,0.57171879,69666.0,69611.0,0.0002]
[1770481024719,0.0002,69695.0,69628.0,0.64940193]
[1770481025012,0.57171879,69725.0,69650.0,0.57752893]
[1770481025219,0.0002,69754.0,69673.0,0.57752893]
[1770481025220,0.071764,69734.0,69673.0,0.57752893]
[1770481025522,0.071758,69740.0,69675.0,0.64935293]
[1770481025812,0.57171879,69748.0,69681.0,0.071818]
[1770481026011,0.48966498,69803.0,69688.0,0.07181]
[1770481026012,0.53593936,69745.0,69688.0,0.07181]
[1770481026315,0.60769936,69738.0,69664.0,0.071835]
[1770481026514,0.60768336,69753.0,69681.0,0.071818]
[1770481026812,0.53593936,69739.0,69678.0,0.61590597]
[1770481027005,0.0002,69761.0,69712.0,0.071786]
[1770481027208,0.53593936,69780.0,69718.0,0.07178]
[1770481027521,0.0002,69799.0,69700.0,0.68861239]
[1770481027522,0.071733,69764.0,69700.0,0.68861239]
[1770481027817,0.53593936,69778.0,69695.0,0.54408597]
[1770481027818,0.53593936,69755.0,69695.0,0.54408597]
[1770481028008,0.53593936,69755.0,69688.0,0.07181]
[1770481028214,0.53593936,69731.0,69664.0,0.071835]
[1770481028520,0.53593936,69720.0,69652.0,0.071848]
[1770481028717,0.53593936,69708.0,69641.0,0.071859]
[1770481029022,0.53593936,69700.0,69646.0,0.071853]
[1770481029223,0.53593936,69684.0,69614.0,0.1680296]
[1770481029516,0.53593936,69682.0,69605.0,0.1680296]
[1770481029707,0.071762,69736.0,69596.0,0.071905]
[1770481029708,0.53593936,69665.0,69596.0,0.071905]
[1770481029907,0.53593936,69663.0,69601.0,0.54408597]
[1770481030112,0.53593936,69685.0,69625.0,0.071876]
[1770481030309,0.53613936,69670.0,69611.0,0.071889]
[1770481030511,0.53593936,69655.0,69596.0,0.16814374]
[1770481030710,0.53593936,69655.0,69593.0,0.54408597]
[1770481030922,0.57198901,69652.0,69591.0,0.071911]
[1770481031119,0.57198901,69652.0,69588.0,0.56674948]
[1770481031423,0.57198901,69673.0,69605.0,0.071896]
[1770481031718,0.57198901,69688.0,69625.0,0.56674948]
[1770481031926,0.0002,69694.0,69643.0,0.63860648]
[1770481032121,0.071773,69725.0,69653.0,0.56674948]
[1770481032308,0.21526458,69732.0,69669.0,0.07183]
[1770481032613,0.57198901,69721.0,69657.0,0.071843]
[1770481032813,0.57198901,69721.0,69638.0,0.16814374]
[1770481032814,0.57198901,69710.0,69652.0,0.071848]
[1770481033026,0.64377801,69710.0,69645.0,0.63860448]
[1770481033221,0.57198901,69710.0,69645.0,0.63860448]
[1770481033420,0.64376001,69727.0,69660.0,0.16814374]
[1770481033616,0.64376001,69727.0,69656.0,0.071843]
[1770481033920,0.57198901,69727.0,69671.0,0.071828]
[1770481034110,0.57198901,69727.0,69663.0,0.071836]
[1770481034317,0.57198901,69715.0,69643.0,0.16814374]
[1770481034518,0.57198901,69715.0,69630.0,0.28027931]
[1770481034519,0.57198901,69706.0,69630.0,0.07187]
[1770481034824,0.0002,69734.0,69593.0,0.16814374]
[1770481034825,0.57198901,69659.0,69593.0,0.16814374]
[1770481035023,0.57198901,69641.0,69571.0,0.21013234]
[1770481035319,0.014368,69657.0,69530.0,0.21051634]
[1770481035320,0.57198901,69608.0,69530.0,0.21051634]
[1770481035520,0.57198901,69626.0,69554.0,0.071949]
[1770481035717,0.57198901,69626.0,69540.0,0.014392]
[1770481035718,0.00119539,69607.0,69551.0,0.0002]
[1770481035915,0.00013505,69606.0,69569.0,0.071933]
[1770481036119,0.014368,69660.0,69551.0,0.56694948]
[1770481036120,0.57198901,69600.0,69551.0,0.0002]
[1770481036420,0.57198901,69595.0,69551.0,0.0002]
[1770481036627,0.57198901,69590.0,69544.0,0.0002]
[1770481036822,0.14469696,69620.0,69544.0,0.0002]
[1770481036823,0.071879,69623.0,69552.0,0.63870048]
[1770481037023,0.071856,69645.0,69577.0,0.56674948]
[1770481037220,0.071804,69695.0,69589.0,0.56674948]
[1770481037221,0.071844,69656.0,69589.0,0.56674948]
[1770481037421,0.64383201,69657.0,69591.0,0.56674948]
[1770481037626,0.071851,69650.0,69583.0,0.56674948]
[1770481037923,0.64387001,69621.0,69552.0,0.2100928]
[1770481038124,0.57198901,69599.0,69538.0,0.2102928]
[1770481038422,0.57198901,69591.0,69538.0,0.0002]
[1770481038625,0.57198901,69589.0,69539.0,0.071964]
[1770481038817,0.57198901,69610.0,69546.0,0.071957]
[1770481039019,0.57198901,69632.0,69563.0,0.56694948]
[1770481039222,0.64386301,69628.0,69563.0,0.56694948]
[1770481039531,0.57198901,69618.0,69563.0,0.0002]
[1770481039821,0.57198901,69640.0,69582.0,0.07192]
[1770481040019,0.57198901,69640.0,69569.0,0.63868248]
[1770481040220,0.57198901,69640.0,69575.0,0.071927]
[1770481040422,0.07185,69651.0,69589.0,0.56674948]
[1770481040625,0.57198901,69641.0,69586.0,0.071916]
[1770481040831,0.071844,69656.0,69587.0,0.63866448]
[1770481041027,0.57198901,69656.0,69587.0,0.56674948]
[1770481041214,0.57198901,69662.0,69617.0,0.0002]
[1770481041414,0.64381601,69673.0,69617.0,0.0002]
[1770481041626,0.57198901,69650.0,69590.0,0.56674948]
[1770481041827,0.071848,69653.0,69592.0,0.56674948]
[1770481042137,0.07184,69660.0,69593.0,0.56674948]
[1770481042319,0.07184,69660.0,69596.0,0.56674948]
[1770481042521,0.57198901,69682.0,69619.0,0.071882]
[1770481042819,0.071836,69664.0,69601.0,0.56674948]
[1770481043024,0.64383201,69657.0,69592.0,0.07191]
[1770481043226,0.57198901,69657.0,69601.0,0.63864948]
[1770481043523,0.05377731,69681.0,69577.0,0.2100928]
[1770481043524,0.57198901,69629.0,69577.0,0.2100928]
[1770481043730,0.57198901,69612.0,69567.0,0.0002]
[1770481043915,0.071846,69655.0,69526.0,0.2100928]
[1770481043916,0.57198901,69593.0,69526.0,0.2100928]
[1770481044118,0.57198901,69574.0,69538.0,0.0002]
[1770481044421,0.57198901,69554.0,69489.0,0.07215505]
[1770481044723,0.071922,69581.0,69514.0,0.56674948]
[1770481044929,0.64390001,69592.0,69521.0,0.071983]
[1770481045114,0.071903,69600.0,69535.0,0.071968]
[1770481045316,0.071903,69600.0,69529.0,0.56674948]
[1770481045317,0.57198901,69606.0,69545.0,0.071958]
[1770481045524,0.071871,69631.0,69566.0,0.56674948]
[1770481045822,0.64384201,69647.0,69578.0,0.071924]
[1770481046032,0.07185,69651.0,69582.0,0.07192]
[1770481046221,0.071864,69637.0,69569.0,0.56674948]
[1770481046419,0.071851,69649.0,69584.0,0.56674948]
[1770481046626,0.57198901,69639.0,69569.0,0.071933]
[1770481046817,0.00053384,69596.0,69554.0,0.071949]
[1770481047016,0.00053384,69596.0,69540.0,0.014392]
[1770481047017,0.071872,69629.0,69561.0,0.63869148]
[1770481047320,0.57198901,69593.0,69539.0,0.20946901]
[1770481047523,0.64390201,69590.0,69540.0,0.215979]
[1770481047724,0.57198901,69590.0,69542.0,0.071961]
[1770481047915,0.57198901,69590.0,69534.0,0.071969]
[1770481048121,0.071925,69578.0,69519.0,0.21074951]
[1770481048327,0.57198901,69568.0,69501.0,0.072004]
[1770481048627,0.21544829,69577.0,69536.0,0.071968]
[1770481048832,0.071878,69624.0,69546.0,0.63870648]
[1770481049020,0.07187,69632.0,69557.0,0.071946]
[1770481049216,0.086234,69639.0,69543.0,0.21074951]
[1770481049421,0.071826,69673.0,69516.0,0.071989]
[1770481049422,0.071864,69637.0,69572.0,0.07193]
[1770481049616,0.071856,69645.0,69572.0,0.071931]
[1770481049828,0.014369,69654.0,69575.0,0.071927]
[1770481050130,0.071864,69638.0,69568.0,0.071934]
[1770481050324,0.071877,69624.0,69569.0,0.21593307]
[1770481050524,0.071877,69624.0,69539.0,0.071964]
[1770481050525,0.071884,69618.0,69539.0,0.071964]
[1770481050828,0.07189,69612.0,69569.0,0.0002]
[1770481051018,0.014375,69623.0,69560.0,0.0002]
[1770481051223,0.014375,69623.0,69513.0,0.28099935]
[1770481051224,0.071904,69599.0,69531.0,0.071972]
[1770481051421,0.071916,69586.0,69532.0,0.21601252]
[1770481051728,0.04399071,69598.0,69537.0,0.071966]
[1770481051929,0.07191,69592.0,69538.0,0.216023]
[1770481052118,0.071925,69578.0,69515.0,0.21074951]
[1770481052326,0.071936,69567.0,69497.0,0.072008]
[1770481052537,0.17273212,69577.0,69510.0,0.071994]
[1770481052829,0.28806193,69581.0,69511.0,0.071994]
[1770481053124,0.14469696,69590.0,69508.0,0.071997]
[1770481053125,0.071926,69577.0,69508.0,0.071997]
[1770481053329,0.14469696,69590.0,69469.0,0.072037]
[1770481053330,0.14469696,69590.0,69521.0,0.071983]
[1770481053536,0.21613993,69587.0,69526.0,0.071978]
[1770481053718,0.071907,69595.0,69523.0,0.071981]
[1770481053919,0.071897,69605.0,69531.0,0.071972]
[1770481054123,0.005,69634.0,69548.0,0.071954]
[1770481054124,0.07188,69621.0,69548.0,0.071954]
[1770481054327,0.071883,69619.0,69548.0,0.071955]
[1770481054530,0.2155022,69619.0,69552.0,0.071951]
[1770481054723,0.2155022,69619.0,69504.0,0.072001]
[1770481054724,0.071891,69611.0,69572.0,0.0002]
[1770481054931,0.14469696,69620.0,69550.0,0.071953]
[1770481054932,0.071881,69620.0,69550.0,0.071953]
[1770481055128,0.071893,69609.0,69571.0,0.0002]
[1770481055329,0.071893,69609.0,69541.0,0.071962]
[1770481055529,0.21658896,69610.0,69562.0,0.0002]
[1770481055834,0.071894,69608.0,69562.0,0.0002]
[1770481056029,0.071894,69608.0,69553.0,0.0002]
[1770481056433,0.14469696,69620.0,69553.0,0.0002]
[1770481056639,0.071895,69607.0,69553.0,0.0002]
[1770481056827,0.071893,69609.0,69553.0,0.0002]
[1770481057142,0.0719,69602.0,69553.0,0.0002]
[1770481057430,0.0719,69602.0,69530.0,0.071974]
[1770481057431,0.071898,69604.0,69547.0,0.0002]
[1770481057631,0.14469696,69630.0,69547.0,0.0002]
[1770481057835,0.071882,69619.0,69548.0,0.071955]
[1770481058031,0.071903,69600.0,69547.0,0.0002]
[1770481058230,0.071894,69608.0,69547.0,0.0002]
[1770481058431,0.071894,69608.0,69542.0,0.0002]
[1770481058725,0.071896,69606.0,69542.0,0.0002]
[1770481059333,0.071903,69599.0,69542.0,0.0002]
[1770481059531,0.071903,69599.0,69540.0,0.0002]
[1770481059731,0.07191,69592.0,69540.0,0.0002]
[1770481060037,0.21659896,69600.0,69540.0,0.0002]
[1770481060229,0.071909,69593.0,69540.0,0.0002]
[1770481060429,0.14469696,69600.0,69540.0,0.0002]
[1770481060430,0.071905,69597.0,69540.0,0.0002]
[1770481060630,0.071905,69597.0,69538.0,0.0002]
[1770481060936,0.071897,69605.0,69538.0,0.0002]
[1770481061140,0.071896,69606.0,69539.0,0.071965]
[1770481061628,0.071896,69606.0,69561.0,0.0002]
[1770481061825,0.071901,69601.0,69561.0,0.0002]
[1770481062030,0.071893,69609.0,69561.0,0.0002]
[1770481062339,0.14469696,69630.0,69561.0,0.0002]
[1770481062538,0.21570903,69619.0,69561.0,0.0002]
[1770481062727,0.21462635,69625.0,69553.0,0.0002]
[1770481063133,0.005,69630.0,69553.0,0.0002]
[1770481063329,0.005,69643.0,69553.0,0.0002]
[1770481063839,0.21631227,69639.0,69553.0,0.0002]
[1770481064028,0.14469696,69640.0,69548.0,0.0002]
[1770481064341,0.22131227,69638.0,69548.0,0.0002]
[1770481064644,0.41797098,69625.0,69548.0,0.0002]
[1770481064842,0.005,69616.0,69548.0,0.0002]
[1770481065138,0.14469696,69600.0,69546.0,0.0002]
[1770481065534,0.005,69616.0,69546.0,0.0002]
[1770481065832,0.14469696,69610.0,69546.0,0.0002]
[1770481066337,0.21489887,69609.0,69543.0,0.0002]
[1770481066741,0.14469696,69590.0,69543.0,0.0002]
[1770481067126,0.21694011,69589.0,69490.0,0.14469696]
[1770481067332,0.21694011,69589.0,69520.0,0.0002]
[1770481067534,0.14469696,69570.0,69537.0,0.0002]
[1770481067734,0.14469696,69570.0,69476.0,0.28099935]
[1770481067937,0.14469696,69580.0,69478.0,0.28485891]
[1770481068136,0.14469696,69580.0,69480.0,0.28485891]
[1770481068336,0.21502902,69579.0,69473.0,0.28485891]
[1770481068537,0.14469696,69560.0,69470.0,0.14469696]
[1770481068732,0.14469696,69540.0,69456.0,0.28485891]
[1770481068938,0.41797098,69571.0,69437.0,0.28485891]
[1770481068939,0.14469696,69520.0,69437.0,0.28485891]
[1770481069135,0.14469696,69520.0,69433.0,0.34726694]
[1770481069136,0.14469696,69520.0,69430.0,0.14469696]
[1770481069444,0.41797098,69535.0,69483.0,0.0002]
[1770481069445,0.21702302,69519.0,69483.0,0.0002]
[1770481069636,0.14469696,69530.0,69440.0,0.14469696]
[1770481069836,0.21472235,69534.0,69482.0,0.0002]
[1770481070032,0.41797098,69543.0,69482.0,0.0002]
[1770481070033,0.14469696,69550.0,69482.0,0.0002]
[1770481070335,0.14469696,69570.0,69482.0,0.0002]
[1770481070736,0.21439931,69569.0,69500.0,0.0002]
[1770481071240,0.14469696,69570.0,69500.0,0.0002]
[1770481071434,0.14469696,69550.0,69500.0,0.0002]
[1770481071836,0.14469696,69530.0,69454.0,0.00582601]
[1770481072035,0.14469696,69530.0,69482.0,0.0002]
[1770481072839,0.41797098,69550.0,69499.0,0.0002]
[1770481073034,0.14469696,69520.0,69499.0,0.0002]
[1770481073236,0.14469696,69520.0,69461.0,0.0002]
[1770481073441,0.14469696,69500.0,69461.0,0.0002]
[1770481073944,0.14469696,69500.0,69454.0,0.00582601]
[1770481074538,0.14469696,69500.0,69454.0,0.00577601]
[1770481074747,0.14469696,69520.0,69454.0,0.00577601]
[1770481075038,0.35967181,69520.0,69481.0,0.0002]
[1770481075238,0.21497485,69520.0,69481.0,0.0002]
[1770481075434,0.14469696,69510.0,69481.0,0.0002]
[1770481076043,0.14469696,69510.0,69454.0,0.00577601]
[1770481076044,0.21449563,69509.0,69454.0,0.00577601]
[1770481076732,0.14469696,69510.0,69454.0,0.00577601]
[1770481076936,0.14469696,69530.0,69454.0,0.00577601]
[1770481077142,0.04536,69531.0,69454.0,0.00577601]
[1770481077838,0.14469696,69550.0,69470.0,0.14469696]
[1770481078041,0.005,69563.0,69454.0,0.00577601]
[1770481078241,0.14469696,69530.0,69470.0,0.0002]
[1770481078543,0.14469696,69510.0,69470.0,0.0002]
[1770481078954,0.2157008,69509.0,69470.0,0.0002]
[1770481079243,0.41797098,69537.0,69470.0,0.0002]
[1770481079442,0.41797098,69556.0,69454.0,0.00577601]
[1770481079652,0.14469696,69540.0,69454.0,0.00577601]
[1770481079939,0.2154267,69536.0,69454.0,0.00577601]
[1770481080150,0.41797098,69542.0,69454.0,0.00577601]
[1770481080346,0.14469696,69560.0,69454.0,0.00577601]
[1770481080544,0.005,69574.0,69454.0,0.00577601]
[1770481080840,0.21583571,69559.0,69454.0,0.00577601]
[1770481081038,0.41797098,69546.0,69454.0,0.00577601]
[1770481081443,0.17132092,69545.0,69454.0,0.00577601]
[1770481081847,0.2168806,69557.0,69460.0,0.14469696]
[1770481082143,0.14469696,69540.0,69454.0,0.00577601]
[1770481082344,0.14469696,69530.0,69454.0,0.00577601]
[1770481082739,0.14077371,69529.0,69454.0,0.00577601]
[1770481082940,0.14469696,69510.0,69454.0,0.00577601]
[1770481083140,0.14469696,69520.0,69454.0,0.00577601]
[1770481083640,0.21548047,69519.0,69454.0,0.00577601]
[1770481084037,0.21548047,69527.0,69454.0,0.00577601]
[1770481084246,0.14469696,69530.0,69454.0,0.00577601]
[1770481084547,0.21548047,69526.0,69454.0,0.00577601]
[1770481084841,0.41797098,69552.0,69454.0,0.00577601]
[1770481085040,0.21542725,69529.0,69454.0,0.00577601]
[1770481085242,0.21542725,69525.0,69454.0,0.00577601]
[1770481085549,0.14469696,69530.0,69454.0,0.00577601]
[1770481085749,0.21542725,69558.0,69459.0,0.1129376]
[1770481086043,0.14469696,69550.0,69471.0,0.1129376]
[1770481086349,0.21592757,69549.0,69512.0,0.0002]
[1770481086946,0.14469696,69540.0,69469.0,0.0002]
[1770481087339,0.21657465,69539.0,69450.0,0.1129376]
[1770481087544,0.21657465,69539.0,69456.0,0.11308273]
[1770481088046,0.21657465,69539.0,69459.0,0.11308273]
[1770481088247,0.21657465,69539.0,69460.0,0.32384308]
[1770481088439,0.14469696,69540.0,69466.0,0.0002]
[1770481088642,0.21445595,69539.0,69466.0,0.0002]
[1770481089341,0.14469696,69550.0,69466.0,0.0002]
[1770481089542,0.14469696,69530.0,69466.0,0.00015]
[1770481090047,0.21639417,69529.0,69466.0,0.00015]
[1770481090238,0.14469696,69510.0,69466.0,0.00015]
[1770481090442,0.14469696,69490.0,69454.0,0.00577601]
[1770481090651,0.21639417,69509.0,69454.0,0.00577601]
[1770481090949,0.01321324,69489.0,69456.0,0.0002]
[1770481091148,0.14469696,69500.0,69456.0,0.0002]
[1770481091550,0.14469696,69490.0,69456.0,0.0002]
[1770481091941,0.41797098,69521.0,69454.0,0.00577601]
[1770481092246,0.14469696,69490.0,69454.0,0.00577601]
[1770481092945,0.14469696,69510.0,69454.0,0.00577601]
[1770481093345,0.21519666,69509.0,69454.0,0.00577601]
[1770481093542,0.14548226,69500.0,69454.0,0.00577601]
[1770481093742,0.21519666,69509.0,69454.0,0.00577601]
[1770481093942,0.41797098,69522.0,69454.0,0.00577601]
[1770481093943,0.14548226,69500.0,69454.0,0.00577601]
[1770481094547,0.14548226,69510.0,69454.0,0.00577601]
[1770481095252,0.2161793,69509.0,69454.0,0.00577601]
[1770481095644,0.14548226,69510.0,69454.0,0.00577601]
[1770481095847,0.14548226,69530.0,69454.0,0.00577601]
[1770481096050,0.0454,69529.0,69456.0,0.11350125]
[1770481096250,0.21609848,69528.0,69460.0,0.11350125]
[1770481096556,0.0454,69529.0,69476.0,0.11350125]
[1770481096852,0.0454,69529.0,69461.0,0.21244226]
[1770481096853,0.2150892,69528.0,69470.0,0.0002]
[1770481097040,0.0454,69529.0,69470.0,0.0002]
[1770481097244,0.0454,69529.0,69478.0,0.11350125]
[1770481097440,0.0454,69529.0,69477.0,0.11350125]
[1770481097951,0.0454,69529.0,69475.0,0.11350125]
[1770481098155,0.0454,69529.0,69474.0,0.0002]
[1770481098448,0.086376,69525.0,69474.0,0.0002]
[1770481098648,0.014398,69515.0,69474.0,0.0002]
[1770481098849,0.0454,69529.0,69474.0,0.0002]
[1770481098850,0.014399,69509.0,69474.0,0.0002]
[1770481099058,0.014399,69509.0,69454.0,0.00577601]
[1770481099348,0.071992,69513.0,69454.0,0.00577601]
[1770481099543,0.0144,69503.0,69454.0,0.00577601]
[1770481100045,0.014401,69498.0,69454.0,0.00577601]
[1770481100246,0.072008,69498.0,69454.0,0.00577601]
[1770481100441,0.41797098,69513.0,69441.0,0.0002]
[1770481100442,0.014403,69487.0,69441.0,0.0002]
[1770481101245,0.014403,69487.0,69427.0,0.11350125]
[1770481101445,0.014403,69487.0,69428.0,0.32700927]
[1770481101647,0.086422,69487.0,69427.0,0.11350125]
[1770481101942,0.014406,69476.0,69420.0,0.11370125]
[1770481102142,0.14548226,69470.0,69420.0,0.0002]
[1770481102346,0.14548226,69470.0,69415.0,0.11350125]
[1770481102543,0.41797098,69485.0,69417.0,0.11350125]
[1770481102744,0.41797098,69485.0,69416.0,0.21336746]
[1770481102745,0.41797098,69485.0,69420.0,0.014417]
[1770481102949,0.21658049,69485.0,69430.0,0.11350125]
[1770481103244,0.21658049,69485.0,69429.0,0.17135058]
[1770481103245,0.14548226,69490.0,69429.0,0.11350125]
[1770481103451,0.014403,69489.0,69429.0,0.0002]
[1770481103653,0.21658049,69487.0,69429.0,0.0002]
[1770481103847,0.23098349,69489.0,69429.0,0.0002]
[1770481104057,0.014401,69500.0,69432.0,0.11350125]
[1770481104259,0.014401,69500.0,69433.0,0.32678148]
[1770481104458,0.014401,69500.0,69458.0,0.0002]
[1770481105062,0.14548226,69490.0,69458.0,0.0002]
[1770481105353,0.014401,69500.0,69458.0,0.0002]
[1770481105555,0.014401,69500.0,69434.0,0.11350125]
[1770481105752,0.014403,69489.0,69431.0,0.0002]
[1770481106152,0.014405,69478.0,69431.0,0.0002]
[1770481106861,0.014403,69488.0,69425.0,0.11350125]
[1770481107058,0.014401,69498.0,69433.0,0.11350125]
[1770481107260,0.071996,69510.0,69433.0,0.11350125]
[1770481107261,0.014399,69509.0,69445.0,0.11350125]
[1770481107560,0.014399,69509.0,69449.0,0.11350125]
[1770481107753,0.21635685,69507.0,69462.0,0.0002]
[1770481108456,0.014401,69499.0,69462.0,0.0002]
[1770481108660,0.014404,69487.0,69437.0,0.0002]
[1770481108854,0.23170269,69498.0,69432.0,0.11350125]
[1770481109051,0.014403,69487.0,69429.0,0.11350125]
[1770481109257,0.014403,69487.0,69425.0,0.11350125]
[1770481109463,0.14548226,69480.0,69419.0,0.11370125]
[1770481109676,0.014403,69487.0,69419.0,0.0002]
[1770481109857,0.014405,69478.0,69420.0,0.32632544]
[1770481110057,0.014405,69478.0,69412.0,0.11350125]
[1770481110363,0.63454214,69486.0,69415.0,0.014418]
[1770481110364,0.21657116,69477.0,69415.0,0.014418]
[1770481110557,0.014405,69479.0,69417.0,0.11350125]
[1770481110757,0.23097616,69479.0,69417.0,0.11350125]
[1770481110967,0.014405,69479.0,69420.0,0.0002]
[1770481111258,0.005,69484.0,69421.0,0.014417]
[1770481111857,0.41797098,69496.0,69427.0,0.11350125]
[1770481112060,0.005,69500.0,69435.0,0.014414]
[1770481112256,0.005,69500.0,69445.0,0.28485183]
[1770481112663,0.005,69514.0,69454.0,0.28485183]
[1770481112962,0.0144,69501.0,69452.0,0.28485183]
[1770481113263,0.14548226,69510.0,69473.0,0.0002]
[1770481114161,0.14548226,69510.0,69449.0,0.21203013]
[1770481114162,0.014399,69509.0,69450.0,0.17135058]
[1770481114363,0.83594197,69554.0,69493.0,0.014402]
[1770481114565,0.83594197,69554.0,69467.0,0.11350125]
[1770481114566,0.01439,69549.0,69487.0,0.11350125]
[1770481114762,0.01439,69549.0,69484.0,0.11350125]
[1770481114967,0.01439,69549.0,69482.0,0.11350125]
[1770481115166,0.014393,69537.0,69482.0,0.11350125]
[1770481115366,0.014391,69547.0,69481.0,0.11350125]
[1770481115565,0.014391,69547.0,69479.0,0.0002]
[1770481115566,0.014391,69547.0,69484.0,0.11350125]
[1770481116066,0.014391,69547.0,69485.0,0.32983052]
[1770481116271,0.014395,69528.0,69481.0,0.0002]
[1770481116857,0.005,69555.0,69481.0,0.0002]
[1770481116858,0.014398,69514.0,69481.0,0.0002]
[1770481117174,0.014397,69517.0,69447.0,0.28498946]
[1770481117372,0.014397,69517.0,69480.0,0.0002]
[1770481117573,0.014397,69517.0,69450.0,0.28498946]
[1770481117866,0.21564789,69516.0,69450.0,0.28498946]
[1770481118169,0.014398,69515.0,69454.0,0.28498946]
[1770481118564,0.014398,69515.0,69451.0,0.28498946]
[1770481118861,0.014398,69511.0,69456.0,0.0002]
[1770481119862,0.014398,69511.0,69444.0,0.28498946]
[1770481120059,0.014398,69511.0,69445.0,0.50143827]
[1770481120267,0.014398,69511.0,69444.0,0.28498946]
[1770481120663,0.014398,69511.0,69443.0,0.28498946]
[1770481121062,0.014398,69511.0,69453.0,0.0002]
[1770481122064,0.014399,69510.0,69448.0,0.28498946]
[1770481122273,0.014399,69510.0,69447.0,0.28498946]
[1770481122458,0.014399,69510.0,69445.0,0.28498946]
[1770481122664,0.014399,69510.0,69446.0,0.28498946]
[1770481123063,0.014399,69510.0,69456.0,0.0002]
[1770481124167,0.014399,69510.0,69448.0,0.28498946]
[1770481124682,0.014399,69510.0,69448.0,0.49934972]
[1770481124873,0.014401,69499.0,69445.0,0.49934972]
[1770481125167,0.014401,69499.0,69443.0,0.2819823]
[1770481125168,0.15988126,69510.0,69443.0,0.2819823]
[1770481125375,0.15988126,69510.0,69444.0,0.71581078]
[1770481125565,0.0144,69505.0,69442.0,0.0002]
[1770481125874,0.014401,69499.0,69442.0,0.0002]
[1770481126368,0.014401,69499.0,69436.0,0.29486518]
[1770481126771,0.014401,69499.0,69436.0,0.7942149]
[1770481126976,0.014401,69499.0,69437.0,0.7158192]
[1770481127275,0.014401,69499.0,69436.0,0.7942149]
[1770481127466,0.014401,69499.0,69447.0,0.0002]
[1770481128574,0.014401,69499.0,69437.0,0.49934972]
[1770481128876,0.014401,69499.0,69436.0,0.29486518]
[1770481129268,0.014401,69499.0,69443.0,0.29018768]
[1770481129476,0.014401,69499.0,69436.0,0.29486518]
[1770481129677,0.014401,69499.0,69446.0,0.0002]
[1770481130573,0.014399,69509.0,69446.0,0.0002]
[1770481130768,0.014399,69509.0,69443.0,0.29425512]
[1770481130970,0.014399,69507.0,69443.0,0.29425512]
[1770481131375,0.014401,69500.0,69443.0,0.29425512]
[1770481131875,0.014403,69487.0,69447.0,0.0002]
[1770481133069,0.014403,69487.0,69424.0,0.29223535]
[1770481133373,0.014405,69480.0,69424.0,0.29223535]
[1770481133579,0.30388726,69480.0,69413.0,0.50015539]
[1770481133781,0.014405,69478.0,69416.0,0.29446089]
[1770481133983,0.21517902,69479.0,69416.0,0.29446089]
[1770481134277,0.014404,69484.0,69421.0,0.50017978]
[1770481134479,0.014402,69494.0,69424.0,0.50017978]
[1770481134676,0.014404,69486.0,69423.0,0.50017978]
[1770481134980,0.21672007,69491.0,69430.0,0.50017978]
[1770481135176,0.014402,69496.0,69429.0,0.50017978]
[1770481135474,0.014404,69484.0,69445.0,0.0002]
[1770481136071,0.014402,69494.0,69445.0,0.0002]
[1770481136573,0.144,69481.0,69416.0,0.29446089]
[1770481136879,0.014404,69484.0,69419.0,0.50017978]
[1770481137181,0.21499588,69483.0,69418.0,0.50017978]
[1770481137379,0.014405,69478.0,69416.0,0.29446089]
[1770481137581,0.158405,69478.0,69431.0,0.0002]
[1770481137782,0.014406,69473.0,69431.0,0.0002]
[1770481137983,0.014404,69483.0,69431.0,0.0002]
[1770481138382,0.158408,69467.0,69431.0,0.0002]
[1770481138582,0.01441,69456.0,69402.0,0.28498946]
[1770481138879,0.01441,69456.0,69401.0,0.0002]
[1770481138880,0.21539715,69455.0,69401.0,0.0002]
[1770481139083,0.01441,69454.0,69401.0,0.0002]
[1770481139284,0.15841,69454.0,69401.0,0.0002]
[1770481139692,0.15841,69454.0,69389.0,0.5789002]
[1770481139888,0.15841,69454.0,69389.0,0.29391074]
[1770481140084,0.14548226,69460.0,69384.0,0.28498946]
[1770481140085,0.158411,69448.0,69384.0,0.28498946]
[1770481140385,0.21648817,69447.0,69387.0,0.28498946]
[1770481140582,0.21648817,69447.0,69392.0,0.28152689]
[1770481140781,0.014409,69458.0,69395.0,0.0002]
[1770481141088,0.014407,69469.0,69398.0,0.28498946]
[1770481141389,0.014407,69469.0,69395.0,0.0002]
[1770481141390,0.01441,69457.0,69395.0,0.0002]
[1770481141582,0.014408,69467.0,69397.0,0.11350125]
[1770481141780,0.014408,69467.0,69398.0,0.50158218]
[1770481141994,0.2172884,69487.0,69424.0,0.0002]
[1770481142288,0.072032,69475.0,69424.0,0.0002]
[1770481142478,0.216032,69475.0,69424.0,0.0002]